{"text_format":"1","workbook":"xlsx","n_sheets":3,"sheets":["Komunikat","Raport","Slownik"],"not_rendered":{"charts":0,"images":3,"macros":1,"external_links":0,"defined_names":0,"comments":0,"pivot_tables":0},"unopened":[],"bounds":{"document_bytes":16777216,"sheet_cells":100000,"rows_first":2000,"rows_last":500,"rows_between":2000,"halvings":0,"cell_chars":16384,"cell_head_chars":4096},"cells_cut":0,"cells_raw":0,"read":"whole","date_system":"1900"}

{"sheet":"Komunikat","index":0,"n_rows":0,"n_cols":0,"rows_kept":0,"cut":false,"hidden":false,"merged":[]}

{"sheet":"Raport","index":1,"n_rows":143,"n_cols":13,"rows_kept":143,"cut":false,"hidden":true,"merged":[[9,0,9,11],[13,1,13,10],[17,1,17,10],[25,1,25,2],[27,1,27,2],[19,1,19,2],[21,1,21,2],[23,1,23,2],[19,4,19,10],[21,4,21,10],[23,4,23,10],[25,4,25,10],[27,4,27,10],[15,1,15,10],[37,1,37,10],[142,1,142,10],[43,1,43,10],[11,1,11,10],[45,1,45,10],[51,1,51,10],[53,1,53,10],[29,1,29,10],[33,1,33,10],[35,1,35,10],[41,1,41,10],[31,1,31,10],[61,1,61,5],[61,7,61,10],[71,1,71,5],[71,7,71,10],[67,1,67,10],[69,1,69,5],[69,7,69,10],[73,1,73,5],[73,7,73,10],[63,1,63,10],[75,1,75,10],[79,1,79,10],[77,1,77,10],[47,1,47,10],[49,1,49,7],[49,9,49,10],[59,1,59,5],[59,7,59,10],[39,1,39,10],[65,1,65,10],[55,1,55,10],[57,1,57,10],[85,1,85,5],[85,7,85,10],[83,1,83,5],[83,7,83,10],[103,1,103,5],[103,7,103,10],[81,1,81,10],[99,1,99,5],[99,7,99,10],[97,1,97,5],[97,7,97,10],[95,1,95,5],[95,7,95,10],[93,1,93,5],[93,7,93,10],[91,1,91,5],[91,7,91,10],[89,1,89,5],[89,7,89,10],[87,1,87,5],[108,1,108,10],[110,1,110,5],[110,7,110,10],[112,1,112,5],[112,7,112,10],[101,1,101,5],[101,7,101,10],[105,1,105,10],[87,7,87,10],[122,1,122,5],[122,7,122,10],[125,1,125,5],[125,7,125,10],[127,1,127,5],[127,7,127,10],[114,1,114,5],[114,7,114,10],[116,1,116,5],[116,7,116,10],[120,1,120,5],[120,7,120,10],[118,1,118,5],[118,7,118,10],[139,1,139,10],[141,1,141,5],[141,7,141,10],[129,1,129,10],[133,1,133,5],[133,7,133,10],[137,1,137,5],[137,7,137,10],[131,1,131,5],[131,7,131,10],[135,1,135,10]]}
[]
[]
[]
[]
[]
[]
[]
[]
[]
["Raport z udziału w konkursie\n„SPÓŁDZIELNIA DOBRYCH SERC”\nw ramach Programu TalentowiSKO"]
[]
[null,"Dane identyfikacyjne szkoły"]
[]
[null,"Proszę podać dokładną nazwę szkoły."]
[]
[null," "]
[]
[null,"Dane teleadresowe szkoły"]
[]
[null,"Ulica"]
[]
[null,"Miejscowość "]
[]
[null,"Kod pocztowy"]
[]
[null,"Numer telefonu"]
[]
[null,"Adres e-mail"]
[]
[null,"Imię i nazwisko opiekuna"]
[]
[]
[]
[null,"Szkoła działająca pod patronatem Banku Spółdzielczego"]
[]
[]
[]
[null,"Region do którego przypisany jest Bank Spółdzielczy\n(Uwaga: Wynika z wewnętrznego podziału, nie zawsze odpowiada regionowi geograficznemu)"]
[]
[null,{"$f":"IFERROR(VLOOKUP(B36,Slownik!B:C,2,FALSE),\"\")","v":""}]
[]
[null,"Szkoła raportuje udział w Konkursie w roku szkolnym"]
[]
[]
[]
[null,"Podsumowanie działań konkursowych"]
[]
[null,"1. Materiał video relacjonujący działania realizowane w ramach konkursu"]
[]
[]
[]
[null,"2. Cel na który grupa zbierała pieniądze."]
[]
[null,"Prosimy, aby opisali Państwo cel, na który zbierali Państwo pieniądze, wskazali powiązanie z potrzebami lokalnej społeczności oraz przedstawili w jaki sposób cel zostały wyłoniony - z czyjej inicjatywy.\nWażne – mogą Państwo wskazać jeden cel. W przypadku wskazania większej ilości celów Komisja oceni jedynie pierwszy z opisanych.\n"]
[]
[null,"Opis celu, na który zbierali Państwo pieniądze"]
[null,null,null,null,null,null,null,"x"]
[]
[null,null,null,null,null,null,null,"x"]
[null,"Kto był pomysłodawcą celu?"]
[null,null,null,null,null,null,null,"x"]
[null,"Kto skorzystał dzięki realizacji celu?"]
[]
[null,"3. Sposób realizacji głównego działania, za pośrednictwem którego grupa zbierała środki na wybrany cel."]
[]
[null,"Prosimy, aby opisali Państwo główne działanie, za pośrednictwem którego zbierali Państwo pieniądze na wybrany cel. Jak długo trwały przygotowania? Jaki był przebieg procesu – prosimy opisać etapy – od pomysłu po realizację. Prosimy wskazać kto został zaproszony do wzięcia udziału w wydarzeniu.\nWażne – mogą Państwo opisać jedno działanie główne. W przypadku wskazania większej ilości działań Komisja oceni jedynie pierwsze z opisanych."]
[]
[]
[]
[null,"W jaki sposób zrealizowali Państwo główne działanie służące zebraniu pieniędzy na cel?"]
[]
[null,"Kto został zaproszony na wydarzenie?"]
[]
[null,"Czy działaniu towarzyszyła kampania reklamowa?",null,null,null,null,null,null,null,null,null,null,{"$f":"IF(H74=\"TAK\",2,0)","v":0}]
[]
[null,"4. Realizacja innych działań służących zebraniu pieniędzy na wybrany cel."]
[]
[null,"Prosimy, aby wymienili Państwo i krótko opisali inne, mniejsze działania realizowane w celu zebrania pieniędzy na wybrany cel."]
[]
[]
[]
[null,"Ile działań dodatkowych wspierających wybrany cel zrealizowała Państwa szkoła?\n(Prosimy o wybranie jednej odpowiedzi \"TAK\" przy ilości działań, które Państwo podjęli, w pozostałych polach prosimy wybrać \"NIE\")"]
[]
[null,"brak dodatkowych działań",null,null,null,null,null,null,null,null,null,null,{"$f":"IF(H84=\"TAK\",0,0)","v":0}]
[]
[null,"1 działanie",null,null,null,null,null,null,null,null,null,null,{"$f":"IF(H86=\"TAK\",1,0)","v":0}]
[]
[null,"2 działania",null,null,null,null,null,null,null,null,null,null,{"$f":"IF(H88=\"TAK\",2,0)","v":0}]
[]
[null,"3 działania",null,null,null,null,null,null,null,null,null,null,{"$f":"IF(H90=\"TAK\",3,0)","v":0}]
[]
[null,"4 działania",null,null,null,null,null,null,null,null,null,null,{"$f":"IF(H92=\"TAK\",4,0)","v":0}]
[]
[null,"5 działań",null,null,null,null,null,null,null,null,null,null,{"$f":"IF(H94=\"TAK\",5,0)","v":0}]
[]
[null,"6 działań",null,null,null,null,null,null,null,null,null,null,{"$f":"IF(H96=\"TAK\",6,0)","v":0}]
[]
[null,"7 działań",null,null,null,null,null,null,null,null,null,null,{"$f":"IF(H98=\"TAK\",7,0)","v":0}]
[]
[null,"8 działań",null,null,null,null,null,null,null,null,null,null,{"$f":"IF(H100=\"TAK\",8,0)","v":0}]
[]
[null,"9 działań",null,null,null,null,null,null,null,null,null,null,{"$f":"IF(H102=\"TAK\",9,0)","v":0}]
[]
[null,"10 i więcej działań",null,null,null,null,null,null,null,null,null,null,{"$f":"IF(H104=\"TAK\",10,0)","v":0}]
[]
[null,"5. Promocja inicjatywy",null,null,null,null,null,null,null,null,null,null,{"$f":"SUM(M104,M102,M100,M98,M96,M94,M92,M90,M88,M86,M84)","v":0}]
[]
[]
[null,"W jaki sposób akcja była promowana? \n(Prosimy o zaznaczenie „TAK” przy działaniach, które Państwo podjęli, w pozostałych polach prosimy wybrać \"NIE\")"]
[]
[null,"Plakaty",null,null,null,null,null,null,null,null,null,null,{"$f":"IF(H111=\"TAK\",1,0)","v":0}]
[]
[null,"Ulotki",null,null,null,null,null,null,null,null,null,null,{"$f":"IF(H113=\"TAK\",1,0)","v":0}]
[]
[null,"Media społecznościowe szkoły",null,null,null,null,null,null,null,null,null,null,{"$f":"IF(H115=\"TAK\",1,0)","v":0}]
[]
[null,"Lokalne serwisy internetowe",null,null,null,null,null,null,null,null,null,null,{"$f":"IF(H117=\"TAK\",2,0)","v":0}]
[]
[null,"Lokalna prasa",null,null,null,null,null,null,null,null,null,null,{"$f":"IF(H119=\"TAK\",3,0)","v":0}]
[]
[null,"Lokalne radio",null,null,null,null,null,null,null,null,null,null,{"$f":"IF(H121=\"TAK\",3,0)","v":0}]
[]
[null,"Lokalna telewizja",null,null,null,null,null,null,null,null,null,null,{"$f":"IF(H123=\"TAK\",4,0)","v":0}]
[null,null,null,null,null,null,null,null,null,null,null,null,{"$f":"SUM(M123+M121+M119+M117+M115+M113+M111)","v":0}]
[]
[null,"Czy w promocji zostało oznaczone TalentowiSKO?",null,null,null,null,null,null,null,null,null,null,{"$f":"IF(H126=\"TAK\",1,0)","v":0}]
[]
[null,"Czy kampania reklamowa była spójna? \nMiała motyw przewodni?",null,null,null,null,null,null,null,null,null,null,{"$f":"IF(H128=\"TAK\",1,0)","v":0}]
[]
[null,"6. Liczba uczniów zaangażowanych w działania konkursowe w stosunku do ogólnej liczby uczniów w szkole."]
[]
[null,"Liczba uczniów w szkole"]
[]
[null,"Liczba uczniów zaangażowanych w działania konkursowe"]
[]
[null,"7. Ilość zebranych pieniędzy w przeliczeniu na jednego ucznia zaangażowanego w zbiórki na wybrany cel."]
[]
[null,"Ilość zebranych pieniędzy"]
[]
[null,"8. Przynależność uczniów do Szkolnej Kasy Oszczędności"]
[]
[null,"Czy Państwa szkoła posiada Szkolną Kasę Oszczędności?",null,null,null,null,null,null,null,null,null,null,{"$f":"IF(H142=\"TAK\",10,0)","v":0}]
[null,"Uwaga! Po zapisaniu pliku nie zmieniaj jego nazwy! Nazwa nadawana jest automatycznie, w wymaganym formacie."]

{"sheet":"Slownik","index":2,"n_rows":307,"n_cols":5,"rows_kept":307,"cut":false,"hidden":true,"merged":[]}
[]
[null,"ABS Bank Spółdzielczy","Katowice",null,"Tak"]
[null,"AURET BANK Spółdzielczy","Warszawa",null,"Nie"]
[null,"Bank Spółdzielczy \"Bank Rolników\" w Opolu","Wrocław"]
[null,"Bank Spółdzielczy Czechowice-Dziedzice-Bestwina","Katowice"]
[null,"Bank Spółdzielczy Daleszyce-Górno","Kraków"]
[null,"Bank Spółdzielczy Grodków-Łosiów z siedzibą w Grodkowie","Wrocław"]
[null,"Bank Spółdzielczy Rzemiosła w Radomiu","Warszawa"]
[null,"Bank Spółdzielczy w Adamowie","Lublin"]
[null,"Bank Spółdzielczy w Andrespolu","Warszawa"]
[null,"Bank Spółdzielczy w Augustowie","Olsztyn"]
[null,"Bank Spółdzielczy w Baborowie","Wrocław"]
[null,"Bank Spółdzielczy w Barcinie","Warszawa"]
[null,"Bank Spółdzielczy w Bargłowie Kościelnym","Warszawa"]
[null,"Bank Spółdzielczy w Bartoszycach","Olsztyn"]
[null,"Bank Spółdzielczy w Będzinie","Katowice"]
[null,"Bank Spółdzielczy w Białej","Wrocław"]
[null,"Bank Spółdzielczy w Białej Podlaskiej","Warszawa"]
[null,"Bank Spółdzielczy w Białej Rawskiej","Warszawa"]
[null,"Bank Spółdzielczy w Białopolu","Lublin"]
[null,"Bank Spółdzielczy w Bieczu","Rzeszów"]
[null,"Bank Spółdzielczy w Bielsku Podlaskim","Olsztyn"]
[null,"Bank Spółdzielczy w Biłgoraju","Lublin"]
[null,"Bank Spółdzielczy w Biszczy","Lublin"]
[null,"Bank Spółdzielczy w Błażowej","Rzeszów"]
[null,"Bank Spółdzielczy w Brańsku","Warszawa"]
[null,"Bank Spółdzielczy w Brzegu","Wrocław"]
[null,"Bank Spółdzielczy w Brzesku","Kraków"]
[null,"Bank Spółdzielczy w Brzeźnicy","Kraków"]
[null,"Bank Spółdzielczy w Busku-Zdroju","Kraków"]
[null,"Bank Spółdzielczy w Bystrej","Katowice"]
[null,"Bank Spółdzielczy w Chłopicach","Rzeszów"]
[null,"Bank Spółdzielczy w Chmielniku","Kraków"]
[null,"Bank Spółdzielczy w Chojnicach","Warszawa"]
[null,"Bank Spółdzielczy w Chojnowie","Wrocław"]
[null,"Bank Spółdzielczy w Chrzanowie","Kraków"]
[null,"Bank Spółdzielczy w Ciechanowcu","Olsztyn"]
[null,"Bank Spółdzielczy w Cieszynie","Katowice"]
[null,"Bank Spółdzielczy w Cycowie","Lublin"]
[null,"Bank Spółdzielczy w Czarnym Dunajcu","Kraków"]
[null,"Bank Spółdzielczy w Czyżewie","Olsztyn"]
[null,"Bank Spółdzielczy w Dąbrowie Tarnowskiej","Kraków"]
[null,"Bank Spółdzielczy w Dobczycach","Kraków"]
[null,"Bank Spółdzielczy w Dobrzeniu Wielkim","Wrocław"]
[null,"Bank Spółdzielczy w Dynowie","Rzeszów"]
[null,"Bank Spółdzielczy w Ełku","Olsztyn"]
[null,"Bank Spółdzielczy w Garwolinie","Lublin"]
[null,"Bank Spółdzielczy w Gilowicach","Katowice"]
[null,"Bank Spółdzielczy w Gliwicach","Katowice"]
[null,"Bank Spółdzielczy w Głogowie","Wrocław"]
[null,"Bank Spółdzielczy w Głogowie Małopolskim","Rzeszów"]
[null,"Bank Spółdzielczy w Głogówku","Wrocław"]
[null,"Bank Spółdzielczy w Głubczycach","Wrocław"]
[null,"Bank Spółdzielczy w Gogolinie","Wrocław"]
[null,"Bank Spółdzielczy w Gorlicach","Kraków"]
[null,"Bank Spółdzielczy w Gorzycach","Katowice"]
[null,"Bank Spółdzielczy w Gostyninie","Warszawa"]
[null,"Bank Spółdzielczy w Goworowie","Warszawa"]
[null,"Bank Spółdzielczy w Grybowie","Kraków"]
[null,"Bank Spółdzielczy w Hajnówce","Warszawa"]
[null,"Bank Spółdzielczy w Iławie","Olsztyn"]
[null,"Bank Spółdzielczy w Iłowej","Wrocław"]
[null,"Bank Spółdzielczy w Iłży","Warszawa"]
[null,"Bank Spółdzielczy w Izbicy","Lublin"]
[null,"Bank Spółdzielczy w Jabłonce","Kraków"]
[null,"Bank Spółdzielczy w Janowie Lubelskim","Rzeszów"]
[null,"Bank Spółdzielczy w Jarosławiu","Rzeszów"]
[null,"Bank Spółdzielczy w Jasienicy","Katowice"]
[null,"Bank Spółdzielczy w Jasieńcu","Warszawa"]
[null,"Bank Spółdzielczy w Jasionce","Rzeszów"]
[null,"Bank Spółdzielczy w Jastrzębiu-Zdroju","Katowice"]
[null,"Bank Spółdzielczy w Jaworze","Wrocław"]
[null,"Bank Spółdzielczy w Jaworznie","Katowice"]
[null,"Bank Spółdzielczy w Jedwabnem","Olsztyn"]
[null,"Bank Spółdzielczy w Jeleśni","Katowice"]
[null,"Bank Spółdzielczy w Jordanowie","Kraków"]
[null,"Bank Spółdzielczy w Józefowie nad Wisłą","Lublin"]
[null,"Bank Spółdzielczy w Juchnowcu Górnym","Olsztyn"]
[null,"Bank Spółdzielczy w Kadzidle","Warszawa"]
[null,"Bank Spółdzielczy w Kalwarii Zebrzydowskiej","Kraków"]
[null,"Bank Spółdzielczy w Kałuszynie","Warszawa"]
[null,"Bank Spółdzielczy w Kamiennej Górze","Wrocław"]
[null,"Bank Spółdzielczy w Karczewie","Warszawa"]
[null,"Bank Spółdzielczy w Kazimierzu Dolnym","Lublin"]
[null,"Bank Spółdzielczy w Kątach Wrocławskich","Wrocław"]
[null,"Bank Spółdzielczy w Kielcach","Kraków"]
[null,"Bank Spółdzielczy w Kłobucku","Kraków"]
[null,"Bank Spółdzielczy w Kłodzku","Wrocław"]
[null,"Bank Spółdzielczy w Kolbuszowej","Rzeszów"]
[null,"Bank Spółdzielczy w Kolnie","Olsztyn"]
[null,"Bank Spółdzielczy w Kołaczycach","Rzeszów"]
[null,"Bank Spółdzielczy w Konopiskach","Katowice"]
[null,"Bank Spółdzielczy w Końskich","Kraków"]
[null,"Bank Spółdzielczy w Korycinie","Olsztyn"]
[null,"Bank Spółdzielczy w Kożuchowie","Wrocław"]
[null,"Bank Spółdzielczy w Krapkowicach","Wrocław"]
[null,"Bank Spółdzielczy w Krasnosielcu z siedzibą w Makowie Mazowieckim","Olsztyn"]
[null,"Bank Spółdzielczy w Krasnymstawie","Lublin"]
[null,"Bank Spółdzielczy w Krzepicach","Kraków"]
[null,"Bank Spółdzielczy w Krzeszowicach","Kraków"]
[null,"Bank Spółdzielczy w Krzywdzie","Lublin"]
[null,"Bank Spółdzielczy w Legionowie","Warszawa"]
[null,"Bank Spółdzielczy w Legnicy","Wrocław"]
[null,"Bank Spółdzielczy w Leśnicy","Wrocław"]
[null,"Bank Spółdzielczy w Leśniowicach","Lublin"]
[null,"Bank Spółdzielczy w Leżajsku","Rzeszów"]
[null,"Bank Spółdzielczy w Limanowej","Kraków"]
[null,"Bank Spółdzielczy w Lipinkach","Rzeszów"]
[null,"Bank Spółdzielczy w Lubaczowie","Rzeszów"]
[null,"Bank Spółdzielczy w Lubartowie","Lublin"]
[null,"Bank Spółdzielczy w Lubawie","Olsztyn"]
[null,"Bank Spółdzielczy w Lubeni","Rzeszów"]
[null,"Bank Spółdzielczy w Łańcucie","Rzeszów"]
[null,"Bank Spółdzielczy w Łapach","Warszawa"]
[null,"Bank Spółdzielczy w Łaskarzewie","Lublin"]
[null,"Bank Spółdzielczy w Łęcznej","Lublin"]
[null,"Bank Spółdzielczy w Łobżenicy","Warszawa"]
[null,"Bank Spółdzielczy w Łochowie","Lublin"]
[null,"Bank Spółdzielczy w Łomazach","Lublin"]
[null,"Bank Spółdzielczy w Łomży","Olsztyn"]
[null,"Bank Spółdzielczy w Łopusznie","Kraków"]
[null,"Bank Spółdzielczy w Łosicach","Lublin"]
[null,"Bank Spółdzielczy w Łososinie Dolnej","Kraków"]
[null,"Bank Spółdzielczy w Łubnianach","Wrocław"]
[null,"Bank Spółdzielczy w Łukowej","Lublin"]
[null,"Bank Spółdzielczy w Łukowie","Lublin"]
[null,"Bank Spółdzielczy w Małej Wsi","Warszawa"]
[null,"Bank Spółdzielczy w Miedźnej","Katowice"]
[null,"Bank Spółdzielczy w Mielcu","Rzeszów"]
[null,"Bank Spółdzielczy w Międzyrzecu Podlaskim","Warszawa"]
[null,"Bank Spółdzielczy w Miliczu","Wrocław"]
[null,"Bank Spółdzielczy w Mińsku Mazowieckim","Lublin"]
[null,"Bank Spółdzielczy w Mokobodach","Lublin"]
[null,"Bank Spółdzielczy w Mońkach","Olsztyn"]
[null,"Bank Spółdzielczy w Mrągowie","Warszawa"]
[null,"Bank Spółdzielczy w Mszanie Dolnej","Kraków"]
[null,"Bank Spółdzielczy w Mykanowie","Katowice"]
[null,"Bank Spółdzielczy w Nałęczowie","Lublin"]
[null,"Bank Spółdzielczy w Namysłowie","Wrocław"]
[null,"Bank Spółdzielczy w Narolu","Rzeszów"]
[null,"Bank Spółdzielczy w Narwi","Olsztyn"]
[null,"Bank Spółdzielczy w Nidzicy","Olsztyn"]
[null,"Bank Spółdzielczy w Niechobrzu","Rzeszów"]
[null,"Bank Spółdzielczy w Niedrzwicy Dużej","Lublin"]
[null,"Bank Spółdzielczy w Niemcach","Lublin"]
[null,"Bank Spółdzielczy w Nowej Soli","Wrocław"]
[null,"Bank Spółdzielczy w Nowym Dworze Mazowieckim","Warszawa"]
[null,"Bank Spółdzielczy w Nowym Sączu","Kraków"]
[null,"Bank Spółdzielczy w Nowym Targu","Kraków"]
[null,"Bank Spółdzielczy w Obornikach Śląskich","Wrocław"]
[null,"Bank Spółdzielczy w Obszy","Lublin"]
[null,"Bank Spółdzielczy w Olecku","Olsztyn"]
[null,"Bank Spółdzielczy w Oleśnicy","Wrocław"]
[null,"Bank Spółdzielczy w Olsztynku","Olsztyn"]
[null,"Bank Spółdzielczy w Ostrowcu Świętokrzyskim","Kraków"]
[null,"Bank Spółdzielczy w Ostrowi Mazowieckiej","Warszawa"]
[null,"Bank Spółdzielczy w Otmuchowie","Wrocław"]
[null,"Bank Spółdzielczy w Otwocku","Warszawa"]
[null,"Bank Spółdzielczy w Ozorkowie","Warszawa"]
[null,"Bank Spółdzielczy w Pajęcznie","Kraków"]
[null,"Bank Spółdzielczy w Parczewie","Warszawa"]
[null,"Bank Spółdzielczy w Pawłowicach","Katowice"]
[null,"Bank Spółdzielczy w Piasecznie","Warszawa"]
[null,"Bank Spółdzielczy w Pieńsku","Wrocław"]
[null,"Bank Spółdzielczy w Pilźnie","Kraków"]
[null,"Bank Spółdzielczy w Pińczowie","Kraków"]
[null,"Bank Spółdzielczy w Piwnicznej-Zdroju","Kraków"]
[null,"Bank Spółdzielczy w Płońsku","Warszawa"]
[null,"Bank Spółdzielczy w Poddębicach","Wrocław"]
[null,"Bank Spółdzielczy w Podegrodziu","Kraków"]
[null,"Bank Spółdzielczy w Połańcu","Rzeszów"]
[null,"Bank Spółdzielczy w Poniatowej","Lublin"]
[null,"Bank Spółdzielczy w Porąbce","Katowice"]
[null,"Bank Spółdzielczy w Proszowicach","Kraków"]
[null,"Bank Spółdzielczy w Prudniku","Wrocław"]
[null,"Bank Spółdzielczy w Przasnyszu","Warszawa"]
[null,"Bank Spółdzielczy w Przecławiu","Rzeszów"]
[null,"Bank Spółdzielczy w Przeworsku","Rzeszów"]
[null,"Bank Spółdzielczy w Pszczynie","Katowice"]
[null,"Bank Spółdzielczy w Raciborzu","Katowice"]
[null,"Bank Spółdzielczy w Radomiu","Warszawa"]
[null,"Bank Spółdzielczy w Radomyślu Wielkim","Kraków"]
[null,"Bank Spółdzielczy w Radymnie","Rzeszów"]
[null,"Bank Spółdzielczy w Radzyniu Podlaskim","Warszawa"]
[null,"Bank Spółdzielczy w Rajczy","Katowice"]
[null,"Bank Spółdzielczy w Raszynie","Warszawa"]
[null,"Bank Spółdzielczy w Reszlu","Olsztyn"]
[null,"Bank Spółdzielczy w Ropczycach","Rzeszów"]
[null,"Bank Spółdzielczy w Różanie","Warszawa"]
[null,"Bank Spółdzielczy w Rykach","Lublin"]
[null,"Bank Spółdzielczy w Rymanowie","Rzeszów"]
[null,"Bank Spółdzielczy w Rzeszowie","Rzeszów"]
[null,"Bank Spółdzielczy w Samsonowie","Kraków"]
[null,"Bank Spółdzielczy w Sejnach","Olsztyn"]
[null,"Bank Spółdzielczy w Sędziszowie Młp.","Rzeszów"]
[null,"Bank Spółdzielczy w Siedlcach","Warszawa"]
[null,"Bank Spółdzielczy w Siemiatyczach","Olsztyn"]
[null,"Bank Spółdzielczy w Skawinie","Kraków"]
[null,"Bank Spółdzielczy w Skierniewicach","Warszawa"]
[null,"Bank Spółdzielczy w Skoczowie","Katowice"]
[null,"Bank Spółdzielczy w Słomnikach","Kraków"]
[null,"Bank Spółdzielczy w Sochaczewie","Warszawa"]
[null,"Bank Spółdzielczy w Sokołowie Małopolskim","Rzeszów"]
[null,"Bank Spółdzielczy w Sokółce","Olsztyn"]
[null,"Bank Spółdzielczy w Starachowicach","Kraków"]
[null,"Bank Spółdzielczy w Staroźrebach","Warszawa"]
[null,"Bank Spółdzielczy w Starym Sączu","Kraków"]
[null,"Bank Spółdzielczy w Staszowie","Lublin"]
[null,"Bank Spółdzielczy w Stopnicy","Kraków"]
[null,"Bank Spółdzielczy w Strzyżowie","Rzeszów"]
[null,"Bank Spółdzielczy w Suchedniowie","Kraków"]
[null,"Bank Spółdzielczy w Suchej Beskidzkiej","Kraków"]
[null,"Bank Spółdzielczy w Suchowoli","Olsztyn"]
[null,"Bank Spółdzielczy w Suwałkach","Warszawa"]
[null,"Bank Spółdzielczy w Szczebrzeszynie","Lublin"]
[null,"Bank Spółdzielczy w Szczekocinach","Kraków"]
[null,"Bank Spółdzielczy w Szczucinie","Kraków"]
[null,"Bank Spółdzielczy w Szczuczynie","Olsztyn"]
[null,"Bank Spółdzielczy w Szczytnie","Olsztyn"]
[null,"Bank Spółdzielczy w Szumowie","Olsztyn"]
[null,"Bank Spółdzielczy w Szydłowie","Kraków"]
[null,"Bank Spółdzielczy w Środzie Śląskiej","Wrocław"]
[null,"Bank Spółdzielczy w Świdnicy","Wrocław"]
[null,"Bank Spółdzielczy w Świerklańcu","Katowice"]
[null,"Bank Spółdzielczy w Tarczynie","Warszawa"]
[null,"Bank Spółdzielczy w Tarnobrzegu","Rzeszów"]
[null,"Bank Spółdzielczy w Tarnogrodzie","Lublin"]
[null,"Bank Spółdzielczy w Tarnowskich Górach","Katowice"]
[null,"Bank Spółdzielczy w Tomaszowie Lubelskim","Lublin"]
[null,"Bank Spółdzielczy w Trzebieszowie","Lublin"]
[null,"Bank Spółdzielczy w Trzebnicy","Wrocław"]
[null,"Bank Spółdzielczy w Tworogu","Katowice"]
[null,"Bank Spółdzielczy w Tychach","Katowice"]
[null,"Bank Spółdzielczy w Tyczynie","Rzeszów"]
[null,"Bank Spółdzielczy w Ustroniu","Katowice"]
[null,"Bank Spółdzielczy w Warcie","Warszawa"]
[null,"Bank Spółdzielczy w Wąchocku","Kraków"]
[null,"Bank Spółdzielczy w Wąsewie","Warszawa"]
[null,"Bank Spółdzielczy w Werbkowicach","Lublin"]
[null,"Bank Spółdzielczy w Węgierskiej Górce","Katowice"]
[null,"Bank Spółdzielczy w Węgorzewie","Olsztyn"]
[null,"Bank Spółdzielczy w Wielopolu Skrzyńskim","Rzeszów"]
[null,"Bank Spółdzielczy w Wodzisławiu","Kraków"]
[null,"Bank Spółdzielczy w Wojsławicach","Lublin"]
[null,"Bank Spółdzielczy w Wolbromiu","Kraków"]
[null,"Bank Spółdzielczy w Wysokiej","Warszawa"]
[null,"Bank Spółdzielczy w Wysokiem Mazowieckiem","Olsztyn"]
[null,"Bank Spółdzielczy w Zaleszanach","Rzeszów"]
[null,"Bank Spółdzielczy w Zambrowie","Olsztyn"]
[null,"Bank Spółdzielczy w Zatorze","Katowice"]
[null,"Bank Spółdzielczy w Zawadzkiem","Wrocław"]
[null,"Bank Spółdzielczy w Ząbkowicach Śląskich","Wrocław"]
[null,"Bank Spółdzielczy w Zgierzu","Warszawa"]
[null,"Bank Spółdzielczy w Żaganiu","Wrocław"]
[null,"Bank Spółdzielczy w Żmigrodzie","Wrocław"]
[null,"Bank Spółdzielczy w Żołyni","Rzeszów"]
[null,"Bank Spółdzielczy w Żorach","Katowice"]
[null,"Bank Spółdzielczy w Żurawicy","Rzeszów"]
[null,"Bank Spółdzielczy w Żyrakowie","Kraków"]
[null,"Bank Spółdzielczy w Żywcu","Katowice"]
[null,"Bank Spółdzielczy we Frampolu","Lublin"]
[null,"Bank Spółdzielczy we Włoszczowie","Kraków"]
[null,"Bank Spółdzielczy Ziem Górskich KARPATIA","Kraków"]
[null,"Bank Spółdzielczy Ziemi Kraśnickiej w Kraśniku","Lublin"]
[null,"Beskidzki Bank Spółdzielczy","Katowice"]
[null,"Bieszczadzki Bank Spółdzielczy w Ustrzykach Dolnych","Rzeszów"]
[null,"Częstochowski Bank Spółdzielczy JURA BANK","Kraków"]
[null,"Gospodarczy Bank Spółdzielczy Radków z/s w Nowej Rudzie","Wrocław"]
[null,"Gospodarczy Bank Spółdzielczy w Barlinku","Warszawa"]
[null,"HEXA Bank Spółdzielczy","Warszawa"]
[null,"Kurpiowski Bank Spółdzielczy w Myszyńcu","Warszawa"]
[null,"Limes Bank Spółdzielczy","Olsztyn"]
[null,"Lubelski Bank Spółdzielczy","Lublin"]
[null,"Łącki Bank Spółdzielczy","Kraków"]
[null,"Łużycki Bank Spółdzielczy w Lubaniu","Wrocław"]
[null,"Małopolski Bank Spółdzielczy","Kraków"]
[null,"Mazovia Bank Spółdzielczy","Warszawa"]
[null,"Mazowiecki Bank Spółdzielczy w Łomiankach","Warszawa"]
[null,"Mazurski Bank Spółdzielczy w Giżycku","Olsztyn"]
[null,"Meander Bank Spółdzielczy w Krzyżanowicach","Katowice"]
[null,"Międzygminny Bank Spółdzielczy w Zbuczynie","Lublin"]
[null,"Międzypowiatowy Bank Spółdzielczy w Myszkowie","Katowice"]
[null,"Mikołowski Bank Spółdzielczy w Mikołowie","Katowice"]
[null,"Morąsko-Zalewski Bank Spółdzielczy","Olsztyn"]
[null,"Nadsański Bank Spółdzielczy","Rzeszów"]
[null,"Nadwiślański Bank Spółdzielczy w Solcu-Zdroju","Kraków"]
[null,"Orzesko-Knurowski Bank Spółdzielczy z siedzibą w Knurowie","Katowice"]
[null,"Pieniński Bank Spółdzielczy","Kraków"]
[null,"Podhalański Bank Spółdzielczy w Zakopanem","Kraków"]
[null,"Podlaski Bank Spółdzielczy w Knyszynie","Olsztyn"]
[null,"Podlasko-Mazurski Bank Spółdzielczy w Zabłudowie","Olsztyn"]
[null,"Polski Bank Spółdzielczy w Wyszkowie","Warszawa"]
[null,"Powiatowy Bank Spółdzielczy w Kędzierzynie-Koźlu","Wrocław"]
[null,"Powiatowy Bank Spółdzielczy w Opolu Lubelskim","Lublin"]
[null,"Powiatowy Bank Spółdzielczy w Sokołowie Podlaskim","Lublin"]
[null,"Powiatowy Bank Spółdzielczy w Węgrowie","Lublin"]
[null,"Powiatowy Bank Spółdzielczy w Zamościu","Lublin"]
[null,"Powiatowy Bank Spółdzielczy w Złotoryi","Wrocław"]
[null,"Powiślański Bank Spółdzielczy w Kwidzynie","Warszawa"]
[null,"Rejonowy Bank Spółdzielczy w Bychawie","Lublin"]
[null,"Spółdzielczy Bank Powiatowy w Piaskach","Lublin"]
[null,"Spółdzielczy Bank Rozwoju","Olsztyn"]
[null,"Śląski Bank Spółdzielczy \"Silesia\" w Katowicach","Katowice"]
[null,"Świętokrzyski Bank Spółdzielczy w Jędrzejowie","Kraków"]
[null,"Vistula Bank Spółdzielczy","Warszawa"]
[null,"Warmiński Bank Spółdzielczy","Olsztyn"]
[null,"Warszawski Bank Spółdzielczy","Warszawa"]